fUSD/lending_fUSD_20251003
["ID","MTS","AMOUNT","RATE_DAILY","PERIOD"]
[388926641,1759511432109,-530.0,0.00017235,2]
[388926642,1759511432123,-150.0,0.00017236,2]
[388926643,1759511432133,-150.0,0.00017236,2]
[388926644,1759511432143,-150.0,0.00017236,2]
[388926645,1759511432152,-150.0,0.00017236,2]
[388926646,1759511432163,-150.0,0.00017236,2]
[388926647,1759511432172,-239.77990374,0.00017236,2]
[388926648,1759511432181,-150.0,0.00017236,2]
[388926649,1759511432191,-150.0,0.00017236,2]
[388926650,1759511432201,-150.0,0.00017236,2]
[388926651,1759511432211,-150.0,0.00017236,2]
[388926652,1759511432220,-150.0,0.00017236,2]
[388926653,1759511432230,-150.0,0.00017236,2]
[388926654,1759511432240,-150.0,0.00017236,2]
[388926655,1759511432250,-212.25,0.00017236,2]
[388926656,1759511432259,-611.564529,0.00017444,2]
[388926657,1759511432269,-212.25,0.0001751,2]
[388926658,1759511432280,-728.53,0.00017589,2]
[388926659,1759511432294,-230.3,0.0001759,2]
[388926660,1759511432304,-250.0,0.0001759,2]
[388926661,1759511432314,-1000.0,0.0001759,2]
[388926662,1759511432323,-579.65,0.0001759,2]
[388926663,1759511432333,-150.0,0.00017619,2]
[388926664,1759511432343,-150.0,0.00017714,2]
[388926665,1759511432353,-150.0,0.00017714,2]
[388926666,1759511432364,-167.21,0.0001773,2]
[388926667,1759511432375,-260.0,0.0001778,2]
[388926668,1759511432385,-370.55283938,0.00017781,7]
[388926669,1759511432395,-21151.4028783,0.00017781,7]
[388926670,1759511432405,-1223.40870095,0.00017781,7]
[388926671,1759511432415,-212.25,0.00017784,2]
[388926673,1759511432424,-2751.0,0.00017791,2]
[388926675,1759511432433,-7965.41053268,0.00017891,2]
[388926677,1759511432443,-257.91778498,0.00017891,2]
[388926679,1759511432453,-3083.67,0.00017901,2]
[388926681,1759511432462,-8260.13072239,0.00017946,2]
[388926683,1759511432471,-500.0,0.00018,2]
[388926685,1759511432481,-255.98885338,0.00018,2]
[388926687,1759511432490,-500.0,0.00018,2]
[388926689,1759511432499,-500.0,0.00018,2]
[388926692,1759511432509,-500.0,0.00018,2]
[388926695,1759511432518,-500.0,0.00018,2]
[388926698,1759511432527,-174.88135009,0.00018,2]
[388926702,1759511432538,-500.0,0.00018,2]
[388926705,1759511432548,-500.0,0.00018,2]
[388926708,1759511432558,-500.0,0.00018,2]
[388926711,1759511432568,-500.0,0.00018,2]
[388926714,1759511432578,-500.0,0.00018,2]
[388926715,1759511432587,-500.0,0.00018,2]
[388926716,1759511432597,-500.0,0.00018,2]
[388926718,1759511432607,-500.0,0.00018,2]
[388926720,1759511432619,-327.88686749,0.00018,2]
[388926722,1759511432629,-500.0,0.00018,2]
[388926723,1759511432638,-500.0,0.00018,2]
[388926724,1759511432648,-8565.75555911,0.00018001,2]
[388926725,1759511432659,-150.0,0.00018002,2]
[388926726,1759511432670,-180.18404212,0.00018008,2]
[388926727,1759511432681,-5253.01926112,0.00018056,2]
[388926728,1759511432691,-212.25,0.00018058,2]
[388926729,1759511432702,-150.0,0.00018193,2]
[388926730,1759511432711,-150.0,0.00018193,2]
[388926731,1759511432724,-150.0,0.00018193,2]
[388926732,1759511432739,-168.0,0.00018253,2]
[388926733,1759511432751,-151.87,0.00018255,2]
[388926734,1759511432760,-2500.0,0.0001833,2]
[388926735,1759511432772,-195.0,0.0001833,2]
[388926736,1759511432782,-259.94435057,0.0001833,2]
[388926737,1759511432792,-300.0,0.0001833,2]
[388926738,1759511432801,-2000.0,0.0001833,2]
[388926739,1759511432811,-300.0,0.0001833,2]
[388926740,1759511432820,-150.0,0.0001833,2]
[388926741,1759511432830,-250.0,0.0001833,2]
[388926742,1759511432840,-300.0,0.0001833,2]
[388926743,1759511432849,-212.29,0.00018332,2]
[388926744,1759511432859,-1899.5751461,0.00018362,2]
[388926745,1759511432871,-150.0,0.00018385,2]
[388926746,1759511432881,-168.0,0.00018431,2]
[388926747,1759511432891,-579.65,0.00018469,2]
[388926748,1759511432901,-2326.693,0.00018501,2]
[388926749,1759511432914,-322.6107,0.00018522,2]
[388926750,1759511432924,-500.0,0.00018522,2]
[388926751,1759511432936,-500.0,0.00018522,2]
[388926752,1759511432946,-500.0,0.00018522,2]
[388926753,1759511432956,-500.0,0.00018522,2]
[388926754,1759511432966,-200.0,0.00018522,2]
[388926755,1759511432977,-374.01072987,0.00018522,2]
[388926756,1759511432990,-200.0,0.00018522,2]
[388926757,1759511433000,-500.0,0.00018522,2]
[388926758,1759511433009,-500.0,0.00018522,2]
[388926759,1759511433019,-500.0,0.00018522,2]
[388926760,1759511433029,-500.0,0.00018522,2]
[388926761,1759511433039,-500.0,0.00018522,2]
[388926762,1759511433048,-171.62,0.00018538,2]
[388926763,1759511433057,-1000.0,0.000186,2]
[388926764,1759511433067,-250.0,0.000186,2]
[388926765,1759511433076,-172.28,0.00018653,2]
[388926766,1759511433086,-150.0,0.00018672,2]
[388926767,1759511433095,-150.0,0.00018672,2]
[388926768,1759511433106,-1245.089,0.00018726,2]
[388926769,1759511433117,-347.0,0.0001874,2]
[388926770,1759511433128,-168.0,0.00018745,2]
[388926771,1759511433138,-168.0,0.00018747,2]
[388926772,1759511433148,-150.0,0.00018768,2]
[388926773,1759511433158,-833.33554235,0.00018852,2]
[388926774,1759511433168,-1000.0,0.00018855,2]
[388926775,1759511433177,-1425.0,0.00018872,2]
[388926776,1759511433187,-150.0,0.00018878,2]
[388926777,1759511433196,-150.0,0.00018898,2]
[388926778,1759511433205,-1425.0,0.00018933,2]
[388926779,1759511433215,-211.96288243,0.00018935,2]
[388926780,1759511433225,-452.0,0.00018935,2]
[388926781,1759511433234,-500.0,0.00018935,2]
[388926782,1759511433244,-500.0,0.00018935,2]
[388926783,1759511433253,-500.0,0.00018935,2]
[388926784,1759511433263,-1118.0,0.00018935,2]
[388926785,1759511433272,-150.0,0.00018935,2]
[388926786,1759511433282,-500.0,0.00018935,2]
[388926787,1759511433291,-500.0,0.00018935,2]
[388926788,1759511433301,-150.0,0.00018935,2]
[388926789,1759511433311,-150.0,0.00018935,2]
[388926790,1759511433320,-2278.92866314,0.0001895,2]
[388926791,1759511433330,-2289.399036,0.00018957,2]
[388926792,1759511433339,-220.8085209,0.00018957,2]
[388926793,1759511433349,-150.0,0.00018958,2]
[388926794,1759511433358,-292.48764,0.0001896,2]
[388926795,1759511433371,-500.0,0.00018967,2]
[388926796,1759511433380,-2500.0,0.00018968,3]
[388926797,1759511433389,-496.12485528,0.00018969,2]
[388926798,1759511433399,-220.80852087,0.0001897,2]
[388926799,1759511433408,-496.12485528,0.00018972,2]
[388926800,1759511433418,-2278.92866314,0.00018973,2]
[388926801,1759511433427,-1264.07417502,0.00018974,2]
[388926802,1759511433438,-1264.07417502,0.00018975,2]
[388926803,1759511433448,-2500.0,0.00018977,3]
[388926804,1759511433457,-3591.39310724,0.00018978,2]
[388926805,1759511433467,-617.73394101,0.00018979,2]
[388926806,1759511433476,-1000.0,0.00018983,2]
[388926807,1759511433486,-220.80852087,0.00018984,2]
[388926808,1759511433495,-2500.0,0.00018986,3]
[388926809,1759511433504,-617.73394101,0.00018991,2]
[388926810,1759511433514,-2500.0,0.00018994,3]
[388926811,1759511433523,-2278.92866314,0.00018995,2]
[388926812,1759511433532,-200.0,0.00018997,2]
[388926813,1759511433542,-200.0,0.00018997,2]
[388926814,1759511433551,-220.80852087,0.00018997,2]
[388926815,1759511433561,-617.73394101,0.00018997,2]
[388926816,1759511433570,-500.0,0.00019003,2]
[388926817,1759511433580,-150.0,0.00019003,2]
[388926818,1759511433589,-150.0,0.00019003,2]
[388926819,1759511433598,-150.0,0.00019003,2]
[388926820,1759511433608,-150.0,0.00019003,2]
[388926821,1759511433621,-500.0,0.00019003,2]
[388926822,1759511433631,-150.0,0.00019003,2]
[388926823,1759511433640,-150.0,0.00019003,2]
[388926824,1759511433650,-150.0,0.00019003,2]
[388926825,1759511433659,-500.0,0.00019003,2]
[388926826,1759511433669,-2500.0,0.00019003,3]
[388926827,1759511433679,-1263.0,0.00019003,2]
[388926828,1759511433688,-814.0,0.00019003,2]
[388926829,1759511433698,-220.80852087,0.00019011,2]
[388926830,1759511433708,-2500.0,0.00019012,3]
[388926831,1759511433719,-2289.399036,0.00019014,2]
[388926832,1759511433735,-1000.0,0.00019019,2]
[388926833,1759511433744,-1264.07417502,0.0001902,2]
[388926834,1759511433754,-2500.0,0.00019021,3]
[388926835,1759511433764,-220.80852087,0.00019024,2]
[388926836,1759511433775,-150.0,0.00019025,2]
[388926837,1759511433785,-150.0,0.00019025,2]
[388926838,1759511433797,-150.0,0.00019025,2]
[388926839,1759511433807,-150.0,0.00019025,2]
[388926840,1759511433816,-252.96048792,0.00019025,2]
[388926841,1759511433826,-150.18121734,0.00019025,2]
[388926842,1759511433836,-150.0,0.00019025,2]
[388926843,1759511433847,-150.0,0.00019025,2]
[388926844,1759511433858,-150.0,0.00019025,2]
[388926845,1759511433872,-150.0,0.00019025,2]
[388926846,1759511433882,-150.0,0.00019025,2]
[388926847,1759511433892,-150.0,0.00019025,2]
[388926848,1759511433902,-496.12485528,0.00019025,2]
[388926849,1759511433912,-617.73394101,0.00019029,2]
[388926850,1759511433922,-2500.0,0.0001903,3]
[388926851,1759511433931,-617.73394101,0.00019032,2]
[388926852,1759511433941,-2278.92866314,0.00019033,2]
[388926853,1759511433951,-150.0,0.00019037,2]
[388926854,1759511433960,-220.80852087,0.00019038,2]
[388926855,1759511433969,-2500.0,0.00019038,3]
[388926856,1759511433978,-1899.5751461,0.00019046,2]
[388926857,1759511433987,-706.84347885,0.00019047,3]
[388926858,1759511434018,-304.821278,0.00019047,3]
[388926859,1759511434030,-302.9900015,0.00019047,3]
[388926860,1759511434041,-281.935005,0.00019047,3]
[388926861,1759511434053,-903.41023665,0.00019047,3]
[388926862,1759511434062,-1771.75249192,0.00019051,2]
[388926863,1759511434072,-220.80852087,0.00019051,2]
[388926864,1759511434081,-1771.75249186,0.00019054,2]
[388926865,1759511434091,-2289.399036,0.00019055,2]
[388926866,1759511434101,-2500.0,0.00019056,3]
[388926867,1759511434110,-1771.75249186,0.00019057,2]
[388926868,1759511434123,-1771.75249186,0.0001906,2]
[388926869,1759511434133,-292.48765,0.0001906,2]
[388926870,1759511434144,-1771.75249186,0.00019063,2]
[388926871,1759511434155,-150.0,0.00019064,2]
[388926872,1759511434164,-220.80852087,0.00019065,2]
[388926873,1759511434174,-2500.0,0.00019065,3]
[388926874,1759511434183,-1771.75249186,0.00019066,2]
[388926875,1759511434193,-2289.399036,0.00019068,2]
[388926876,1759511434205,-2278.92866314,0.00019068,2]
[388926877,1759511434216,-1264.07417502,0.00019069,2]
[388926878,1759511434225,-1771.75249186,0.00019069,2]
[388926879,1759511434235,-164.41646115,0.0001907,2]
[388926880,1759511434244,-1771.75249186,0.00019072,2]
[388926881,1759511434253,-2500.0,0.00019074,3]
[388926882,1759511434265,-1771.75249186,0.00019075,2]
[388926883,1759511434278,-1000.0,0.00019077,2]
[388926884,1759511434288,-5000.0,0.00019077,2]
[388926885,1759511434298,-710.05397036,0.00019077,2]
[388926886,1759511434307,-1771.75249186,0.00019078,2]
[388926887,1759511434318,-1949.07734758,0.00019078,2]
[388926888,1759511434334,-164.50454512,0.00019078,2]
[388926889,1759511434348,-2289.399036,0.0001908,2]
[388926890,1759511434365,-2500.0,0.00019082,3]
[388926891,1759511434379,-496.12485528,0.00019083,2]
[388926892,1759511434391,-150.0,0.00019083,2]
[388926893,1759511434407,-150.0,0.00019085,2]
[388926894,1759511434422,-370.55283938,0.00019087,2]
[388926895,1759511434436,-2500.0,0.00019091,3]
[388926896,1759511434450,-496.12485528,0.00019093,2]
[388926897,1759511434464,-1264.07417502,0.00019099,2]
[388926898,1759511434477,-182.71098479,0.000191,2]
[388926899,1759511434489,-2500.0,0.000191,3]
[388926900,1759511434505,-186.51773151,0.000191,2]
[388926901,1759511434520,-547.26148611,0.000191,3]
[388926902,1759511434534,-151.0,0.00019129,2]
[388926903,1759511434549,-151.0,0.00019129,2]
[388926904,1759511434563,-151.0,0.00019129,2]
[388926905,1759511434576,-151.0,0.00019129,2]
[388926906,1759511434592,-151.0,0.00019129,2]
[388926907,1759511434606,-151.0,0.00019129,2]
[388926908,1759511434622,-151.0,0.00019129,2]
[388926909,1759511434636,-7579.43628652,0.00019139,2]
[388926910,1759511434649,-6969.377603,0.00019142,2]
[388926911,1759511434667,-7164.5160572,0.00019142,2]
[388926912,1759511434680,-2726.7645073,0.00019146,2]
[388926913,1759511434695,-70518.3068385,0.00019146,2]
[388926914,1759511434708,-9650.2807784,0.00019146,2]
[388926915,1759511434720,-150.0,0.00019146,2]
[388926916,1759511434731,-150.0,0.00019146,2]
[388926917,1759511434751,-237.20660931,0.00019149,2]
[388926918,1759511434763,-311.72888972,0.00019149,2]
[388926919,1759511434775,-156.62882257,0.00019149,2]
[388926920,1759511434787,-303.81,0.00019151,2]
[388926921,1759511434800,-150.95,0.00019151,2]
[388926922,1759511434815,-295.51910908,0.00019151,2]
[388926923,1759511434827,-150.0,0.00019151,2]
[388926924,1759511434839,-160.14885161,0.00019151,2]
[388926925,1759511434850,-150.0,0.00019151,2]
[388926926,1759511434862,-281.74074499,0.00019151,2]
[388926927,1759511434891,-150.0,0.00019151,2]
[388926928,1759511434905,-1428.76629792,0.00019151,2]
[388926929,1759511434918,-184.83834053,0.00019151,2]
[388926930,1759511434931,-150.0,0.00019151,2]
[388926931,1759511434943,-1397.85208395,0.00019151,2]
[388926932,1759511434957,-150.0,0.00019151,2]
[388926933,1759511434970,-10385.40360168,0.00019151,2]
[388926934,1759511436046,-9504.89965441,0.00019151,2]
[388926935,1759511436058,-150.0,0.00019151,2]
[388926936,1759511436070,-1995.68712187,0.00019151,2]
[388926937,1759511436081,-500.0,0.00019151,2]
[388926938,1759511436094,-500.0,0.00019151,2]
[388926939,1759511436108,-500.0,0.00019151,2]
[388926940,1759511436123,-500.0,0.00019151,2]
[388926941,1759511436134,-500.0,0.00019151,2]
[388926942,1759511436146,-500.0,0.00019151,2]
[388926943,1759511436158,-500.0,0.00019151,2]
[388926944,1759511436170,-500.0,0.00019151,2]
[388926945,1759511436183,-500.0,0.00019151,2]
[388926946,1759511436195,-500.0,0.00019151,2]
[388926947,1759511436207,-500.0,0.00019151,2]
[388926948,1759511436219,-500.0,0.00019151,2]
[388926949,1759511436232,-500.0,0.00019151,2]
[388926950,1759511436244,-500.0,0.00019151,2]
[388926951,1759511436256,-522.0,0.00019151,2]
[388926952,1759511436268,-500.0,0.00019151,2]
[388926953,1759511436281,-500.0,0.00019151,2]
[388926954,1759511436294,-500.0,0.00019151,2]
[388926955,1759511436305,-500.0,0.00019151,2]
[388926956,1759511436319,-500.0,0.00019151,2]
[388926957,1759511436331,-500.0,0.00019151,2]
[388926958,1759511436344,-500.0,0.00019151,2]
[388926959,1759511436356,-500.0,0.00019151,2]
[388926960,1759511436377,-504.0,0.00019151,2]
[388926961,1759511436389,-500.0,0.00019151,2]
[388926962,1759511436402,-500.0,0.00019151,2]
[388926963,1759511436414,-500.0,0.00019151,2]
[388926964,1759511436427,-500.0,0.00019151,2]
[388926965,1759511436440,-500.0,0.00019151,2]
[388926966,1759511436453,-500.0,0.00019151,2]
[388926967,1759511436465,-500.0,0.00019151,2]
[388926968,1759511436477,-500.0,0.00019151,2]
[388926969,1759511436490,-500.0,0.00019151,2]
[388926970,1759511436503,-500.0,0.00019151,2]
[388926971,1759511436516,-500.0,0.00019151,2]
[388926972,1759511436529,-500.0,0.00019151,2]
[388926973,1759511436542,-500.0,0.00019151,2]
[388926974,1759511436554,-500.0,0.00019151,2]
[388926975,1759511436578,-500.0,0.00019151,2]
[388926976,1759511436593,-500.0,0.00019151,2]
[388926977,1759511436608,-509.0,0.00019151,2]
[388926978,1759511436625,-500.0,0.00019151,2]
[388926979,1759511436638,-500.0,0.00019151,2]
[388926980,1759511436653,-500.0,0.00019151,2]
[388926981,1759511436667,-500.0,0.00019151,2]
[388926982,1759511436682,-500.0,0.00019151,2]
[388926983,1759511436695,-500.0,0.00019151,2]
[388926984,1759511436709,-500.0,0.00019151,2]
[388926985,1759511436723,-500.0,0.00019151,2]
[388926986,1759511436739,-500.0,0.00019151,2]
[388926987,1759511436753,-500.0,0.00019151,2]
[388926988,1759511436767,-500.0,0.00019151,2]
[388926989,1759511436783,-500.0,0.00019151,2]
[388926990,1759511436797,-500.0,0.00019151,2]
[388926991,1759511436810,-500.0,0.00019151,2]
[388926992,1759511436823,-500.0,0.00019151,2]
[388926993,1759511436837,-361.71131634,0.00019151,2]
[388926994,1759511436856,-138.28868366,0.00019151,2]
[388926995,1759511436872,-500.0,0.00019151,2]
[388926996,1759511436887,-500.0,0.00019151,2]
[388926997,1759511436900,-500.0,0.00019151,2]
[388926998,1759511436913,-500.0,0.00019151,2]
[388926999,1759511436926,-500.0,0.00019151,2]
[388927000,1759511436939,-500.0,0.00019151,2]
[388927001,1759511436952,-500.0,0.00019151,2]
[388927002,1759511436965,-500.0,0.00019151,2]
[388927003,1759511436979,-500.0,0.00019151,2]
[388927004,1759511436992,-500.0,0.00019151,2]
[388927005,1759511437004,-500.0,0.00019151,2]
[388927006,1759511437017,-500.0,0.00019151,2]
[388927007,1759511437031,-500.0,0.00019151,2]
[388927008,1759511437045,-500.0,0.00019151,2]
[388927009,1759511437058,-500.0,0.00019151,2]
[388927010,1759511437071,-500.0,0.00019151,2]
[388927011,1759511437080,-500.0,0.00019151,2]
[388927012,1759511437090,-500.0,0.00019151,2]
[388927013,1759511437098,-500.0,0.00019151,2]
[388927014,1759511437107,-500.0,0.00019151,2]
[388927015,1759511437121,-500.0,0.00019151,2]
[388927016,1759511437130,-500.0,0.00019151,2]
[388927017,1759511437145,-500.0,0.00019151,2]
[388927018,1759511437155,-500.0,0.00019151,2]
[388927019,1759511437165,-500.0,0.00019151,2]
[388927020,1759511437176,-500.0,0.00019151,2]
[388927021,1759511437186,-500.0,0.00019151,2]
[388927022,1759511437197,-500.0,0.00019151,2]
[388927023,1759511437207,-500.0,0.00019151,2]
[388927024,1759511437217,-500.0,0.00019151,2]
[388927025,1759511437227,-500.0,0.00019151,2]
[388927026,1759511437237,-500.0,0.00019151,2]
[388927027,1759511437247,-500.0,0.00019151,2]
[388927028,1759511437257,-500.0,0.00019151,2]
[388927029,1759511437267,-500.0,0.00019151,2]
[388927030,1759511437276,-500.0,0.00019151,2]
[388927038,1759511437985,-500.0,0.00019151,2]
[388927039,1759511438026,-500.0,0.00019151,2]
[388927040,1759511438059,-500.0,0.00019151,2]
[388927041,1759511438079,-500.0,0.00019151,2]
[388927042,1759511438098,-500.0,0.00019151,2]
[388927043,1759511438108,-500.0,0.00019151,2]
[388927044,1759511438119,-500.0,0.00019151,2]
[388927045,1759511438129,-500.0,0.00019151,2]
[388927046,1759511438138,-500.0,0.00019151,2]
[388927047,1759511438148,-590.0,0.00019151,2]
[388927048,1759511438158,-500.0,0.00019151,2]
[388927049,1759511438167,-500.0,0.00019151,2]
[388927050,1759511438177,-500.0,0.00019151,2]
[388927051,1759511438186,-500.0,0.00019151,2]
[388927052,1759511438195,-500.0,0.00019151,2]
[388927053,1759511438204,-500.0,0.00019151,2]
[388927054,1759511438214,-500.0,0.00019151,2]
[388927056,1759511438224,-500.0,0.00019151,2]
[388927058,1759511438233,-500.0,0.00019151,2]
[388927059,1759511438242,-500.0,0.00019151,2]
[388927060,1759511438252,-500.0,0.00019151,2]
[388927061,1759511438261,-500.0,0.00019151,2]
[388927063,1759511438271,-500.0,0.00019151,2]
[388927064,1759511438280,-500.0,0.00019151,2]
[388927067,1759511438290,-500.0,0.00019151,2]
[388927069,1759511438299,-500.0,0.00019151,2]
[388927071,1759511438309,-500.0,0.00019151,2]
[388927072,1759511438319,-500.0,0.00019151,2]
[388927074,1759511438328,-500.0,0.00019151,2]
[388927076,1759511438338,-500.0,0.00019151,2]
[388927078,1759511438347,-500.0,0.00019151,2]
[388927080,1759511438358,-500.0,0.00019151,2]
[388927082,1759511438369,-500.0,0.00019151,2]
[388927085,1759511438379,-500.0,0.00019151,2]
[388927086,1759511438388,-500.0,0.00019151,2]
[388927088,1759511438397,-500.0,0.00019151,2]
[388927091,1759511438407,-500.0,0.00019151,2]
[388927093,1759511438417,-500.0,0.00019151,2]
[388927095,1759511438427,-500.0,0.00019151,2]
[388927097,1759511438437,-953.0,0.00019151,2]
[388927098,1759511438446,-150.59,0.00019167,2]
[388927101,1759511438455,-503.53792125,0.00019167,2]
[388927103,1759511438465,-150.59,0.00019168,2]
[388927105,1759511438475,-503.53792125,0.00019168,2]
[388927106,1759511438484,-503.53792125,0.00019168,2]
[388927109,1759511438494,-15000.0,0.0001917,3]
[388927110,1759511438503,-370.55283938,0.0001917,3]
[388927113,1759511438512,-370.55283938,0.0001917,3]
[388927114,1759511438521,-500.0,0.00019173,2]
[388927117,1759511438531,-5291.73065257,0.00019173,2]
[388927118,1759511438540,-500.0,0.00019173,2]
[388927120,1759511438550,-500.0,0.00019173,2]
[388927123,1759511438559,-500.0,0.00019173,2]
[388927124,1759511438569,-500.0,0.00019173,2]
[388927126,1759511438578,-500.0,0.00019173,2]
[388927128,1759511438588,-10031.07158803,0.00019176,2]
[388927130,1759511438597,-300.0,0.00019177,2]
[388927132,1759511438607,-88943.00965965,0.00019177,2]
[388927135,1759511438625,-5910.798,0.00019177,2]
[388927138,1759511438637,-88096.51887155,0.00019177,2]
[388927142,1759511438666,-1880.8278956,0.00019177,2]
[388927144,1759511438678,-12608.17198988,0.00019177,2]
[388927146,1759511438689,-3539.1,0.00019177,2]
[388927150,1759511438720,-97513.04019478,0.00019177,2]
[388927152,1759511438735,-3688.39597658,0.00019177,2]
[388927195,1759511440550,-220.80852087,0.00019078,2]
[388927196,1759511440560,-202.22,0.00019129,2]
[388927197,1759511440570,-202.22,0.00019136,2]
[388927198,1759511440579,-202.22,0.00019141,2]
[388927199,1759511440589,-244.88147913,0.00019177,2]
[388927200,1759511440639,-155697.3852814,0.00019177,2]
[388927201,1759511440650,-2117.85935819,0.00019177,2]
[388927202,1759511440662,-110614.50894689,0.00019177,2]
[388927204,1759511440770,-8142.2502143,0.00019177,2]
[388927205,1759511440783,-933.75036972,0.00019177,2]
[388927206,1759511440797,-1129.758772,0.00019177,2]
[388927207,1759511440809,-119048.74252386,0.00019177,2]
[388927208,1759511440821,-894.69711463,0.00019177,2]
[388927209,1759511440832,-441.18542875,0.00019177,2]
[388927211,1759511440843,-839.26575871,0.00019177,2]
[388927212,1759511440867,-202.22,0.00019141,2]
[388927213,1759511440876,-197.78,0.00019177,2]
[388927214,1759511441370,-217.13945362,0.00018532,2]
[388927215,1759511441379,-202.22,0.0001916,2]
[388927216,1759511441389,-25818.45328848,0.00019177,2]
[388927217,1759511441507,-3096.16334906,0.00019177,2]
[388927218,1759511441518,-1266.64312705,0.00019177,2]
[388927219,1759511441529,-3250.68036831,0.00019177,2]
[388927220,1759511441541,-8595.5,0.00019177,2]
[388927221,1759511442036,-218.0007232,0.00019177,2]
[388927222,1759511442056,-2157.92961323,0.00019177,2]
[388927223,1759511442067,-12241.99999999,0.00019177,2]
[388927224,1759511442087,-12675.72021556,0.00019177,2]
[388927225,1759511442178,-2437.0,0.00019177,2]
[388927226,1759511442189,-9148.75305471,0.00019177,2]
[388927227,1759511442201,-165184.39508431,0.00019177,2]
[388927228,1759511442276,-655.72133057,0.00019177,2]
[388927229,1759511442323,-2335.64256114,0.00019177,2]
[388927237,1759511443395,-2499.80004621,0.00019177,2]
[388927238,1759511443406,-1206.72549994,0.00019177,2]
[388927239,1759511443444,-10306.98198424,0.00019177,2]
[388927240,1759511443454,-50875.28905414,0.00019177,2]
[388927241,1759511443465,-930.49266489,0.00019177,2]
[388927242,1759511443547,-400.0,0.00019177,2]
[388927243,1759511443569,-4648.01921053,0.00019177,2]
[388927244,1759511443580,-500.0,0.00019177,2]
[388927245,1759511443590,-2384.44473601,0.00019177,2]
[388927246,1759511443599,-300.0,0.00019177,2]
[388927247,1759511443609,-666.0,0.00019177,2]
[388927248,1759511443620,-300.0,0.00019177,2]
[388927249,1759511443630,-151.0,0.00019177,2]
[388927250,1759511443639,-203324.35835331,0.00019178,2]
[388927251,1759511443648,-4108.56,0.00019178,2]
[388927252,1759511443658,-4108.56,0.00019178,2]
[388927253,1759511443668,-4108.56,0.00019178,2]
[388927254,1759511443678,-4108.56,0.00019178,2]
[388927255,1759511443687,-4108.56,0.00019178,2]
[388927256,1759511443697,-4108.56,0.00019178,2]
[388927257,1759511443707,-4108.56,0.00019178,2]
[388927258,1759511443716,-4108.56,0.00019178,2]
[388927259,1759511443726,-4108.56,0.00019178,2]
[388927260,1759511443741,-4108.56,0.00019178,2]
[388927261,1759511443751,-4108.56,0.00019178,2]
[388927262,1759511443762,-4108.56,0.00019178,2]
[388927263,1759511443772,-4108.56,0.00019178,2]
[388927264,1759511443782,-4108.56,0.00019178,2]
[388927265,1759511443792,-4108.56,0.00019178,2]
[388927266,1759511443803,-4108.56,0.00019178,2]
[388927267,1759511443819,-4108.56,0.00019178,2]
[388927268,1759511443829,-4108.56,0.00019178,2]
[388927269,1759511443838,-4108.56,0.00019178,2]
[388927270,1759511443847,-4108.56,0.00019178,2]
[388927271,1759511443857,-4108.56,0.00019178,2]
[388927272,1759511443867,-4108.56,0.00019178,2]
[388927273,1759511443879,-4108.56,0.00019178,2]
[388927274,1759511443889,-4108.68361123,0.00019178,2]
[388927275,1759511443899,-500.0,0.00019178,2]
[388927276,1759511443908,-500.0,0.00019178,2]
[388927277,1759511443918,-500.0,0.00019178,2]